[Event "*** Titled Tuesday Blitz"]
[Site "Chess.com"]
[Date "2021.04.06"]
[Round "11"]
[White "marianokar"]
[Black "Fy_Rakotomaharo"]
[Result "1/2-1/2"]
[WhiteElo "2565"]
[BlackElo "2688"]
[TimeControl "180+1"]
[EndTime "12:07:57 PDT"]
[Termination "Game drawn by repetition"]

1. e4 {[%clk 0:03:00.9]} 1... e5 {[%clk 0:02:59.9]} 2. Nf3 {[%clk 0:03:00.3]}
2... Nc6 {[%clk 0:02:59.8]} 3. Bc4 {[%clk 0:03:00.7]} 3... Bc5 {[%clk
0:02:59.5]} 4. c3 {[%clk 0:03:01.1]} 4... Nf6 {[%clk 0:03:00.1]} 5. d3 {[%clk
0:03:01.6]} 5... a5 {[%clk 0:02:59.2]} 6. O-O {[%clk 0:03:01.5]} 6... d6 {[%clk
0:02:59.3]} 7. Bg5 {[%clk 0:02:51]} 7... h6 {[%clk 0:02:58.9]} 8. Bh4 {[%clk
0:02:51.1]} 8... g5 {[%clk 0:02:44.5]} 9. Bg3 {[%clk 0:02:51]} 9... Bd7 {[%clk
0:02:45.1]} 10. d4 {[%clk 0:02:42.1]} 10... exd4 {[%clk 0:02:07.6]} 11. cxd4
{[%clk 0:02:43]} 11... Bb6 {[%clk 0:02:07.1]} 12. e5 {[%clk 0:02:38.9]} 12...
Nh5 {[%clk 0:02:04.5]} 13. exd6 {[%clk 0:02:38.5]} 13... Nxg3 {[%clk 0:02:03.2]}
14. Re1+ {[%clk 0:02:37.4]} 14... Kf8 {[%clk 0:02:02.4]} 15. hxg3 {[%clk
0:02:23.2]} 15... cxd6 {[%clk 0:02:00.1]} 16. d5 {[%clk 0:02:00.7]} 16... Ne5
{[%clk 0:01:41.9]} 17. Nxe5 {[%clk 0:01:58.5]} 17... dxe5 {[%clk 0:01:42.8]} 18.
Nc3 {[%clk 0:01:55.4]} 18... Bd4 {[%clk 0:01:37.4]} 19. Qf3 {[%clk 0:01:35.5]}
19... g4 {[%clk 0:01:36.1]} 20. Qd3 {[%clk 0:01:26.6]} 20... Qf6 {[%clk
0:01:27.3]} 21. Ne4 {[%clk 0:01:26]} 21... Qg6 {[%clk 0:01:27.8]} 22. Nc5 {[%clk
0:01:07.2]} 22... Bf5 {[%clk 0:01:23.5]} 23. Qa3 {[%clk 0:01:06.7]} 23... Kg7
{[%clk 0:01:23.4]} 24. Nb3 {[%clk 0:00:50.5]} 24... Bb6 {[%clk 0:00:33.4]} 25.
Rxe5 {[%clk 0:00:39.3]} 25... Rhe8 {[%clk 0:00:32.3]} 26. Rae1 {[%clk 0:00:34]}
26... Rxe5 {[%clk 0:00:32.2]} 27. Rxe5 {[%clk 0:00:34.9]} 27... Qf6 {[%clk
0:00:32]} 28. Qe7 {[%clk 0:00:33.3]} 28... a4 {[%clk 0:00:27.8]} 29. Nd2 {[%clk
0:00:18.6]} 29... Bd4 {[%clk 0:00:22.3]} 30. Re2 {[%clk 0:00:16.6]} 30... Bxb2
{[%clk 0:00:16.6]} 31. Qxb7 {[%clk 0:00:15.8]} 31... Rd8 {[%clk 0:00:16]} 32. d6
{[%clk 0:00:14.1]} 32... Rxd6 {[%clk 0:00:12.3]} 33. Ne4 {[%clk 0:00:14.2]}
33... Bxe4 {[%clk 0:00:09.6]} 34. Rxe4 {[%clk 0:00:14]} 34... Rd1+ {[%clk
0:00:10.3]} 35. Kh2 {[%clk 0:00:13.7]} 35... Qxf2 {[%clk 0:00:09.5]} 36. Rxg4+
{[%clk 0:00:12.3]} 36... Kh7 {[%clk 0:00:05.8]} 37. Qxf7+ {[%clk 0:00:11.2]}
37... Qxf7 {[%clk 0:00:05.4]} 38. Bxf7 {[%clk 0:00:12.1]} 38... a3 {[%clk
0:00:05.5]} 39. Bg6+ {[%clk 0:00:10.1]} 39... Kh8 {[%clk 0:00:05.9]} 40. Bf7
{[%clk 0:00:10.6]} 40... Rd6 {[%clk 0:00:05.1]} 41. Rg6 {[%clk 0:00:09.9]} 41...
Rxg6 {[%clk 0:00:04.6]} 42. Bxg6 {[%clk 0:00:10.8]} 42... Kg7 {[%clk 0:00:05.5]}
43. Bc2 {[%clk 0:00:10.7]} 43... Kf6 {[%clk 0:00:06.4]} 44. Bb3 {[%clk
0:00:11.6]} 44... Kg5 {[%clk 0:00:07.3]} 45. Kh3 {[%clk 0:00:12.1]} 45... h5
{[%clk 0:00:08.2]} 46. Kh2 {[%clk 0:00:11.6]} 46... Be5 {[%clk 0:00:08.7]} 47.
Kh3 {[%clk 0:00:11.5]} 47... Bd6 {[%clk 0:00:09]} 48. Bc4 {[%clk 0:00:11.9]}
48... Bc7 {[%clk 0:00:09]} 49. Bb3 {[%clk 0:00:12.4]} 49... Bd6 {[%clk
0:00:09.4]} 50. Bc4 {[%clk 0:00:12.8]} 50... Be5 {[%clk 0:00:10]} 51. Bb3 {[%clk
0:00:13.1]} 51... Bd6 {[%clk 0:00:10.4]} 1/2-1/2

[Event "*** Titled Tuesday Blitz"]
[Site "Chess.com"]
[Date "2021.04.06"]
[Round "11"]
[White "korbul"]
[Black "Nils_03"]
[Result "1/2-1/2"]
[WhiteElo "2543"]
[BlackElo "2408"]
[TimeControl "180+1"]
[EndTime "12:07:57 PDT"]
[Termination "Game drawn by repetition"]

1. e4 {[%clk 0:03:00.9]} 1... c5 {[%clk 0:03:00.1]} 2. d4 {[%clk 0:03:00.4]}
2... cxd4 {[%clk 0:02:59.5]} 3. c3 {[%clk 0:03:00.4]} 3... Nf6 {[%clk 0:02:57]}
4. e5 {[%clk 0:02:59.7]} 4... Nd5 {[%clk 0:02:57.5]} 5. Nf3 {[%clk 0:02:59.9]}
5... d6 {[%clk 0:02:56.9]} 6. cxd4 {[%clk 0:02:57.9]} 6... Nc6 {[%clk
0:02:54.2]} 7. Bc4 {[%clk 0:02:51.4]} 7... Nb6 {[%clk 0:02:50.9]} 8. Bb3 {[%clk
0:02:41.5]} 8... dxe5 {[%clk 0:02:48.7]} 9. d5 {[%clk 0:02:39.8]} 9... Nd4
{[%clk 0:02:43.1]} 10. Nxd4 {[%clk 0:02:33.3]} 10... exd4 {[%clk 0:02:44]} 11.
Qxd4 {[%clk 0:02:32.6]} 11... e5 {[%clk 0:02:06.6]} 12. Qxe5+ {[%clk 0:02:27.8]}
12... Be7 {[%clk 0:02:07.1]} 13. O-O {[%clk 0:02:26.3]} 13... O-O {[%clk
0:02:07.5]} 14. Nc3 {[%clk 0:02:25.9]} 14... Bf6 {[%clk 0:02:07.5]} 15. Qh5
{[%clk 0:02:24]} 15... g6 {[%clk 0:02:06.9]} 16. Qf3 {[%clk 0:02:22.3]} 16...
Bf5 {[%clk 0:02:02.6]} 17. Bh6 {[%clk 0:02:19.9]} 17... Re8 {[%clk 0:02:02.6]}
18. Rfe1 {[%clk 0:02:20.2]} 18... Qd6 {[%clk 0:01:49.1]} 19. h3 {[%clk
0:02:18.2]} 19... Be5 {[%clk 0:01:38.5]} 20. Re3 {[%clk 0:01:58.2]} 20... Bd4
{[%clk 0:01:33.7]} 21. Rxe8+ {[%clk 0:01:55.9]} 21... Rxe8 {[%clk 0:01:34.6]}
22. Rd1 {[%clk 0:01:50.7]} 22... Qc5 {[%clk 0:01:33.3]} 23. d6 {[%clk
0:01:37.8]} 23... Be6 {[%clk 0:00:47.4]} 24. Be3 {[%clk 0:00:51.1]} 24... Bxe3
{[%clk 0:00:43.7]} 25. Qxe3 {[%clk 0:00:51.1]} 25... Qxe3 {[%clk 0:00:43.4]} 26.
fxe3 {[%clk 0:00:51.4]} 26... Bxb3 {[%clk 0:00:43.5]} 27. axb3 {[%clk
0:00:51.3]} 27... Nd7 {[%clk 0:00:32.7]} 28. Kf2 {[%clk 0:00:50.5]} 28... f5
{[%clk 0:00:31.3]} 29. Nd5 {[%clk 0:00:43.7]} 29... Kf7 {[%clk 0:00:30.1]} 30.
Rc1 {[%clk 0:00:42.3]} 30... Re6 {[%clk 0:00:24]} 31. Rc7 {[%clk 0:00:39.5]}
31... Rxd6 {[%clk 0:00:23.3]} 32. Nc3 {[%clk 0:00:32.4]} 32... Ke6 {[%clk
0:00:19.1]} 33. Ke2 {[%clk 0:00:29]} 33... Rb6 {[%clk 0:00:17.8]} 34. Na4 {[%clk
0:00:26.1]} 34... Kd6 {[%clk 0:00:14.1]} 35. Rxd7+ {[%clk 0:00:17.6]} 35... Kxd7
{[%clk 0:00:15]} 36. Nxb6+ {[%clk 0:00:17.1]} 36... axb6 {[%clk 0:00:15.9]} 37.
e4 {[%clk 0:00:17]} 37... fxe4 {[%clk 0:00:14]} 38. Ke3 {[%clk 0:00:17.2]} 38...
Kd6 {[%clk 0:00:13.9]} 39. Kxe4 {[%clk 0:00:18.1]} 39... Ke6 {[%clk 0:00:14.3]}
40. h4 {[%clk 0:00:18.2]} 40... h6 {[%clk 0:00:12.9]} 41. b4 {[%clk 0:00:18.5]}
41... b5 {[%clk 0:00:12.7]} 42. b3 {[%clk 0:00:16]} 42... h5 {[%clk 0:00:11.5]}
43. Kf4 {[%clk 0:00:14.1]} 43... Kf6 {[%clk 0:00:11.5]} 44. g4 {[%clk
0:00:13.5]} 44... hxg4 {[%clk 0:00:11.6]} 45. Kxg4 {[%clk 0:00:13.4]} 45... b6
{[%clk 0:00:10.1]} 46. Kf4 {[%clk 0:00:13.4]} 46... Ke6 {[%clk 0:00:09.5]} 47.
Kg5 {[%clk 0:00:13.7]} 47... Kf7 {[%clk 0:00:09.7]} 48. Kg4 {[%clk 0:00:13.3]}
48... Kf6 {[%clk 0:00:10.1]} 49. Kf4 {[%clk 0:00:13.4]} 49... Ke6 {[%clk
0:00:10.7]} 50. Ke4 {[%clk 0:00:13.2]} 50... Kd6 {[%clk 0:00:11.1]} 51. Kf4
{[%clk 0:00:11.7]} 51... Ke6 {[%clk 0:00:11.5]} 1/2-1/2

[Event "*** Titled Tuesday Blitz"]
[Site "Chess.com"]
[Date "2021.04.06"]
[Round "11"]
[White "VladaSviridova"]
[Black "ErikRonka"]
[Result "0-1"]
[WhiteElo "2248"]
[BlackElo "2462"]
[TimeControl "180+1"]
[EndTime "12:07:57 PDT"]
[Termination "ErikRonka won on time"]

1. d4 {[%clk 0:03:00.9]} 1... d5 {[%clk 0:02:59.7]} 2. c4 {[%clk 0:03:01]} 2...
e6 {[%clk 0:02:59.8]} 3. Nf3 {[%clk 0:03:01.4]} 3... a6 {[%clk 0:03:00.2]} 4.
cxd5 {[%clk 0:02:55.5]} 4... exd5 {[%clk 0:02:59.9]} 5. Nc3 {[%clk 0:02:55.8]}
5... Nf6 {[%clk 0:02:59.6]} 6. Bg5 {[%clk 0:02:55.1]} 6... Be6 {[%clk
0:02:59.7]} 7. Qc2 {[%clk 0:02:54.4]} 7... Nbd7 {[%clk 0:02:53.7]} 8. e3 {[%clk
0:02:54.4]} 8... h6 {[%clk 0:02:43.2]} 9. Bh4 {[%clk 0:02:54]} 9... g5 {[%clk
0:02:38.3]} 10. Bg3 {[%clk 0:02:54]} 10... Nh5 {[%clk 0:02:38.7]} 11. Be5 {[%clk
0:02:42.4]} 11... Ng7 {[%clk 0:02:31.7]} 12. Bd3 {[%clk 0:02:38.3]} 12... Nxe5
{[%clk 0:02:30.7]} 13. Nxe5 {[%clk 0:02:38.3]} 13... Bd6 {[%clk 0:02:27.7]} 14.
O-O {[%clk 0:02:31.6]} 14... c6 {[%clk 0:02:11.5]} 15. f4 {[%clk 0:02:26.2]}
15... gxf4 {[%clk 0:02:12.4]} 16. exf4 {[%clk 0:02:23.7]} 16... Qb6 {[%clk
0:01:54.3]} 17. Qf2 {[%clk 0:02:17.7]} 17... Nf5 {[%clk 0:01:41.9]} 18. Bxf5
{[%clk 0:02:07.2]} 18... Bxf5 {[%clk 0:01:42.8]} 19. Rfe1 {[%clk 0:02:07.6]}
19... Kf8 {[%clk 0:01:00.9]} 20. Kh1 {[%clk 0:01:51.6]} 20... h5 {[%clk
0:00:55.3]} 21. Qh4 {[%clk 0:01:20.5]} 21... Qd8 {[%clk 0:00:52.3]} 22. Qf2
{[%clk 0:00:47.7]} 22... f6 {[%clk 0:00:38.1]} 23. Nf3 {[%clk 0:00:38.3]} 23...
Qd7 {[%clk 0:00:32.6]} 24. Nh4 {[%clk 0:00:37.6]} 24... Kf7 {[%clk 0:00:31.5]}
25. Re3 {[%clk 0:00:30.7]} 25... Rae8 {[%clk 0:00:28.3]} 26. Rae1 {[%clk
0:00:30.7]} 26... Rxe3 {[%clk 0:00:28.1]} 27. Rxe3 {[%clk 0:00:30.3]} 27... Re8
{[%clk 0:00:25.6]} 28. Rxe8 {[%clk 0:00:27.6]} 28... Kxe8 {[%clk 0:00:26.5]} 29.
Qe2+ {[%clk 0:00:26.3]} 29... Kd8 {[%clk 0:00:22.5]} 30. Qxh5 {[%clk 0:00:24.7]}
30... Bg4 {[%clk 0:00:20.6]} 31. Qh8+ {[%clk 0:00:23.5]} 31... Kc7 {[%clk
0:00:20.1]} 32. Qxf6 {[%clk 0:00:21.6]} 32... Be7 {[%clk 0:00:20]} 33. Qe5+
{[%clk 0:00:20.8]} 33... Bd6 {[%clk 0:00:20]} 34. Qe3 {[%clk 0:00:18]} 34... Qf7
{[%clk 0:00:17.3]} 35. g3 {[%clk 0:00:17]} 35... Be7 {[%clk 0:00:16]} 36. Ng2
{[%clk 0:00:16.3]} 36... Bd6 {[%clk 0:00:15.1]} 37. Ne1 {[%clk 0:00:16.2]} 37...
Qh5 {[%clk 0:00:15.2]} 38. Kg1 {[%clk 0:00:15.4]} 38... Bf5 {[%clk 0:00:15.4]}
39. Nf3 {[%clk 0:00:14.9]} 39... b5 {[%clk 0:00:15.4]} 40. Ne5 {[%clk
0:00:14.7]} 40... b4 {[%clk 0:00:15.5]} 41. Ne2 {[%clk 0:00:13.9]} 41... Be4
{[%clk 0:00:14.4]} 42. Nc1 {[%clk 0:00:11]} 42... Qh3 {[%clk 0:00:14.4]} 43. Qe2
{[%clk 0:00:09.4]} 43... c5 {[%clk 0:00:13.5]} 44. Nb3 {[%clk 0:00:08.1]} 44...
cxd4 {[%clk 0:00:13.2]} 45. Nxd4 {[%clk 0:00:07.9]} 45... Bc5 {[%clk 0:00:13.5]}
46. Nc6 {[%clk 0:00:02.3]} 46... Qd7 {[%clk 0:00:10.8]} 47. Kf2 {[%clk
0:00:01.9]} 47... Qxc6 {[%clk 0:00:10.4]} 0-1

[Event "*** Titled Tuesday Blitz"]
[Site "Chess.com"]
[Date "2021.04.06"]
[Round "11"]
[White "thechesscorner64"]
[Black "chessbia"]
[Result "1-0"]
[WhiteElo "2428"]
[BlackElo "2333"]
[TimeControl "180+1"]
[EndTime "12:07:57 PDT"]
[Termination "thechesscorner64 won on time"]

1. e4 {[%clk 0:02:57.4]} 1... e5 {[%clk 0:02:57.1]} 2. Nf3 {[%clk 0:02:56.1]}
2... Nc6 {[%clk 0:02:56.9]} 3. Bb5 {[%clk 0:02:55.9]} 3... a6 {[%clk 0:02:56.6]}
4. Ba4 {[%clk 0:02:55.6]} 4... Nf6 {[%clk 0:02:55.5]} 5. d3 {[%clk 0:02:55.2]}
5... d6 {[%clk 0:02:54.2]} 6. Nbd2 {[%clk 0:02:54.3]} 6... Be7 {[%clk
0:02:53.3]} 7. Nf1 {[%clk 0:02:53.7]} 7... O-O {[%clk 0:02:53]} 8. Ng3 {[%clk
0:02:53.5]} 8... b5 {[%clk 0:02:47.3]} 9. Bb3 {[%clk 0:02:53.3]} 9... d5 {[%clk
0:02:46.7]} 10. O-O {[%clk 0:02:50.7]} 10... Bg4 {[%clk 0:02:40.5]} 11. exd5
{[%clk 0:02:37.5]} 11... Nxd5 {[%clk 0:02:37.2]} 12. c3 {[%clk 0:02:32.2]} 12...
b4 {[%clk 0:02:27.2]} 13. h3 {[%clk 0:02:28.8]} 13... Be6 {[%clk 0:02:23.9]} 14.
Bd2 {[%clk 0:02:13]} 14... bxc3 {[%clk 0:02:13.6]} 15. bxc3 {[%clk 0:02:13.9]}
15... Na5 {[%clk 0:02:05.4]} 16. Bc2 {[%clk 0:02:03.6]} 16... Nc6 {[%clk
0:01:51.4]} 17. Re1 {[%clk 0:02:03.2]} 17... Bd6 {[%clk 0:01:45.8]} 18. Ng5
{[%clk 0:01:54.9]} 18... Re8 {[%clk 0:01:27.9]} 19. d4 {[%clk 0:01:43.5]} 19...
h6 {[%clk 0:01:23.5]} 20. Nxe6 {[%clk 0:01:41.8]} 20... Rxe6 {[%clk 0:01:16.6]}
21. c4 {[%clk 0:01:40.1]} 21... Ndb4 {[%clk 0:00:49.2]} 22. d5 {[%clk
0:01:21.7]} 22... Nxc2 {[%clk 0:00:48.9]} 23. dxe6 {[%clk 0:01:21.7]} 23... Nxe1
{[%clk 0:00:42.8]} 24. exf7+ {[%clk 0:01:21.6]} 24... Kxf7 {[%clk 0:00:43.7]}
25. Bxe1 {[%clk 0:01:17.7]} 25... Nd4 {[%clk 0:00:37.1]} 26. Qh5+ {[%clk
0:01:15.8]} 26... Kg8 {[%clk 0:00:34.7]} 27. Bc3 {[%clk 0:01:15.1]} 27... c5
{[%clk 0:00:32.1]} 28. Bxd4 {[%clk 0:01:06.5]} 28... exd4 {[%clk 0:00:29.7]} 29.
Re1 {[%clk 0:01:02.8]} 29... Bxg3 {[%clk 0:00:28]} 30. fxg3 {[%clk 0:01:01.6]}
30... Qd6 {[%clk 0:00:26.2]} 31. Re5 {[%clk 0:00:56.4]} 31... Rf8 {[%clk
0:00:20.6]} 32. Kh2 {[%clk 0:00:55]} 32... Rc8 {[%clk 0:00:16.2]} 33. Rd5 {[%clk
0:00:51]} 33... Qe7 {[%clk 0:00:14.9]} 34. Qg4 {[%clk 0:00:44.7]} 34... Rc7
{[%clk 0:00:13.8]} 35. Qg6 {[%clk 0:00:38.1]} 35... a5 {[%clk 0:00:13]} 36. a4
{[%clk 0:00:31.6]} 36... Rd7 {[%clk 0:00:10.8]} 37. Qc6 {[%clk 0:00:17.7]} 37...
Rxd5 {[%clk 0:00:09.7]} 38. cxd5 {[%clk 0:00:17.3]} 38... d3 {[%clk 0:00:09.6]}
39. d6 {[%clk 0:00:17.8]} 39... Qd8 {[%clk 0:00:06.6]} 40. Qd5+ {[%clk
0:00:16.8]} 40... Kh8 {[%clk 0:00:06.4]} 41. Qxd3 {[%clk 0:00:17.4]} 41... c4
{[%clk 0:00:06.8]} 42. Qd4 {[%clk 0:00:12]} 42... c3 {[%clk 0:00:06.7]} 43. Qxc3
{[%clk 0:00:11.2]} 43... Qxd6 {[%clk 0:00:06.4]} 44. Qxa5 {[%clk 0:00:11.7]}
44... Kh7 {[%clk 0:00:05.7]} 45. Qb5 {[%clk 0:00:11]} 1-0

[Event "*** Titled Tuesday Blitz"]
[Site "Chess.com"]
[Date "2021.04.06"]
[Round "11"]
[White "ShahMatKanal"]
[Black "serena-maria"]
[Result "0-1"]
[WhiteElo "2431"]
[BlackElo "2361"]
[TimeControl "180+1"]
[EndTime "12:07:58 PDT"]
[Termination "serena-maria won by resignation"]

1. e4 {[%clk 0:02:58.3]} 1... c5 {[%clk 0:02:59.9]} 2. b3 {[%clk 0:02:52.4]}
2... Nf6 {[%clk 0:02:58.5]} 3. e5 {[%clk 0:02:50]} 3... Nd5 {[%clk 0:02:58.4]}
4. Bb2 {[%clk 0:02:50.2]} 4... Nc6 {[%clk 0:02:57.3]} 5. Nf3 {[%clk 0:02:38.9]}
5... d6 {[%clk 0:02:55]} 6. exd6 {[%clk 0:02:34.6]} 6... Qxd6 {[%clk 0:02:51.9]}
7. Bc4 {[%clk 0:02:31.9]} 7... Bg4 {[%clk 0:02:47.4]} 8. h3 {[%clk 0:02:24.2]}
8... Bh5 {[%clk 0:02:46.2]} 9. O-O {[%clk 0:02:04.2]} 9... O-O-O {[%clk
0:02:42.7]} 10. d3 {[%clk 0:01:53.2]} 10... e6 {[%clk 0:02:37.1]} 11. Nbd2
{[%clk 0:01:51.1]} 11... f5 {[%clk 0:02:36.6]} 12. Qe1 {[%clk 0:01:44.5]} 12...
Rg8 {[%clk 0:02:20.8]} 13. Ne5 {[%clk 0:01:30.4]} 13... g5 {[%clk 0:02:19.7]}
14. Ndf3 {[%clk 0:01:16.8]} 14... g4 {[%clk 0:02:09.2]} 15. hxg4 {[%clk
0:01:16.6]} 15... fxg4 {[%clk 0:02:10.1]} 16. Nd2 {[%clk 0:01:06.4]} 16... Bg7
{[%clk 0:01:56.7]} 17. Ne4 {[%clk 0:00:58.6]} 17... Qc7 {[%clk 0:01:45.7]} 18.
Nxc6 {[%clk 0:00:42.5]} 18... Bxb2 {[%clk 0:01:11.8]} 19. Nxd8 {[%clk
0:00:41.6]} 19... Rxd8 {[%clk 0:01:02.5]} 20. Rb1 {[%clk 0:00:31.2]} 20... Be5
{[%clk 0:01:00.5]} 21. Nxc5 {[%clk 0:00:28.6]} 21... Bh2+ {[%clk 0:00:52.4]} 22.
Kh1 {[%clk 0:00:28.5]} 22... Qxc5 {[%clk 0:00:40.7]} 23. Qxe6+ {[%clk
0:00:28.6]} 23... Kb8 {[%clk 0:00:37.8]} 24. Kxh2 {[%clk 0:00:28.9]} 24... Nf4
{[%clk 0:00:31.6]} 25. Rbe1 {[%clk 0:00:26]} 25... Nxe6 {[%clk 0:00:30.8]} 26.
Rxe6 {[%clk 0:00:26.4]} 26... Bf7 {[%clk 0:00:28]} 27. Re4 {[%clk 0:00:20.5]}
27... Bxc4 {[%clk 0:00:27.8]} 28. bxc4 {[%clk 0:00:19.8]} 28... Qh5+ {[%clk
0:00:25.2]} 29. Kg3 {[%clk 0:00:20.2]} 29... Qf5 {[%clk 0:00:20.7]} 30. Rxg4
{[%clk 0:00:19.4]} 30... h5 {[%clk 0:00:20.7]} 31. Rf4 {[%clk 0:00:18.2]} 31...
Rg8+ {[%clk 0:00:20.1]} 32. Kf3 {[%clk 0:00:18.6]} 32... Qe5 {[%clk 0:00:20]}
33. g3 {[%clk 0:00:17.3]} 33... Qc3 {[%clk 0:00:19]} 34. Rh1 {[%clk 0:00:15.6]}
34... Qxc2 {[%clk 0:00:18.5]} 35. Rxh5 {[%clk 0:00:15.1]} 35... Qxd3+ {[%clk
0:00:18.6]} 36. Kg2 {[%clk 0:00:15.8]} 36... Qd1 {[%clk 0:00:14.7]} 37. Rb5
{[%clk 0:00:14.7]} 37... Rd8 {[%clk 0:00:14.1]} 38. Rf7 {[%clk 0:00:14.4]} 38...
Rd7 {[%clk 0:00:14.3]} 39. Rf8+ {[%clk 0:00:14.7]} 39... Kc7 {[%clk 0:00:14.7]}
40. Rff5 {[%clk 0:00:14.6]} 40... Qd4 {[%clk 0:00:14.3]} 41. Rbc5+ {[%clk
0:00:14.1]} 41... Kd8 {[%clk 0:00:12.7]} 42. Rf8+ {[%clk 0:00:13.7]} 42... Ke7
{[%clk 0:00:12.8]} 43. Rcc8 {[%clk 0:00:14.6]} 43... Qe4+ {[%clk 0:00:11.9]} 44.
f3 {[%clk 0:00:14]} 44... Qc2+ {[%clk 0:00:11.6]} 45. Kh3 {[%clk 0:00:13.6]}
45... Qh7+ {[%clk 0:00:11.3]} 46. Kg4 {[%clk 0:00:13.4]} 46... Rd4+ {[%clk
0:00:10.4]} 47. f4 {[%clk 0:00:13.6]} 47... Qg7+ {[%clk 0:00:10.6]} 48. Kf3
{[%clk 0:00:13.7]} 48... Qxf8 {[%clk 0:00:10.8]} 49. Rxf8 {[%clk 0:00:13.7]}
49... Kxf8 {[%clk 0:00:11.7]} 50. g4 {[%clk 0:00:13.6]} 50... Rxc4 {[%clk
0:00:12.3]} 51. g5 {[%clk 0:00:14.1]} 51... Rc2 {[%clk 0:00:12.9]} 52. Kg4
{[%clk 0:00:14.6]} 52... Rxa2 {[%clk 0:00:13.5]} 0-1

[Event "*** Titled Tuesday Blitz"]
[Site "Chess.com"]
[Date "2021.04.06"]
[Round "11"]
[White "vugarrasulov"]
[Black "BogdanDeac"]
[Result "0-1"]
[WhiteElo "2868"]
[BlackElo "3065"]
[TimeControl "180+1"]
[EndTime "12:07:59 PDT"]
[Termination "BogdanDeac won by checkmate"]

1. d4 {[%clk 0:03:00.9]} 1... Nf6 {[%clk 0:02:59.1]} 2. c4 {[%clk 0:03:01.1]}
2... e6 {[%clk 0:02:59.4]} 3. Nf3 {[%clk 0:03:00.7]} 3... d5 {[%clk 0:02:59.7]}
4. Nc3 {[%clk 0:02:59]} 4... dxc4 {[%clk 0:02:59.3]} 5. e4 {[%clk 0:02:57.8]}
5... Bb4 {[%clk 0:02:58.7]} 6. Bg5 {[%clk 0:02:55.9]} 6... h6 {[%clk 0:02:58.2]}
7. Bxf6 {[%clk 0:02:51.7]} 7... Qxf6 {[%clk 0:02:59.1]} 8. Bxc4 {[%clk
0:02:51.8]} 8... c5 {[%clk 0:02:59]} 9. O-O {[%clk 0:02:51.5]} 9... O-O {[%clk
0:02:58.7]} 10. e5 {[%clk 0:02:51.2]} 10... Qd8 {[%clk 0:02:58.5]} 11. Ne4
{[%clk 0:02:45.2]} 11... cxd4 {[%clk 0:02:57.7]} 12. a3 {[%clk 0:02:45.6]} 12...
Be7 {[%clk 0:02:56.4]} 13. Nxd4 {[%clk 0:02:23.2]} 13... Nd7 {[%clk 0:02:47.9]}
14. Bxe6 {[%clk 0:02:11.9]} 14... fxe6 {[%clk 0:01:23.7]} 15. Nxe6 {[%clk
0:02:12.8]} 15... Qb6 {[%clk 0:01:23.7]} 16. Nxf8 {[%clk 0:01:59.2]} 16... Nxf8
{[%clk 0:01:24.6]} 17. b4 {[%clk 0:01:50.5]} 17... Be6 {[%clk 0:01:09.6]} 18.
Rc1 {[%clk 0:01:48.4]} 18... a5 {[%clk 0:00:51.5]} 19. Nc5 {[%clk 0:01:40.7]}
19... axb4 {[%clk 0:00:48.2]} 20. axb4 {[%clk 0:01:41.6]} 20... Rd8 {[%clk
0:00:40.9]} 21. Qe2 {[%clk 0:01:25.2]} 21... Bd5 {[%clk 0:00:30.6]} 22. Rfd1
{[%clk 0:01:12.9]} 22... Qxb4 {[%clk 0:00:19.6]} 23. Nd3 {[%clk 0:00:44.5]}
23... Qe4 {[%clk 0:00:17.3]} 24. Qf1 {[%clk 0:00:33.2]} 24... Ne6 {[%clk
0:00:16.4]} 25. f3 {[%clk 0:00:22.6]} 25... Qe3+ {[%clk 0:00:14.3]} 26. Kh1
{[%clk 0:00:23.2]} 26... Bc6 {[%clk 0:00:14.5]} 27. Nf2 {[%clk 0:00:15.5]} 27...
Rxd1 {[%clk 0:00:09.7]} 28. Rxd1 {[%clk 0:00:16.4]} 28... Qxe5 {[%clk
0:00:10.2]} 29. Ng4 {[%clk 0:00:16.5]} 29... Qf5 {[%clk 0:00:06.6]} 30. Qc4
{[%clk 0:00:16.2]} 30... Bf8 {[%clk 0:00:06.5]} 31. Re1 {[%clk 0:00:15.3]} 31...
Qd5 {[%clk 0:00:05.6]} 32. Qc3 {[%clk 0:00:13]} 32... Nf4 {[%clk 0:00:04.9]} 33.
Ne5 {[%clk 0:00:11.6]} 33... Qe6 {[%clk 0:00:03.7]} 34. Nxc6 {[%clk 0:00:07.3]}
34... Qxc6 {[%clk 0:00:04.6]} 35. Qb3+ {[%clk 0:00:07.6]} 35... Qd5 {[%clk
0:00:03.7]} 36. Qe3 {[%clk 0:00:06.7]} 36... Ng6 {[%clk 0:00:03.5]} 37. Qb6
{[%clk 0:00:05.6]} 37... Nf4 {[%clk 0:00:03.1]} 38. Qe3 {[%clk 0:00:04.6]} 38...
Bd6 {[%clk 0:00:03.2]} 39. Rb1 {[%clk 0:00:03.9]} 39... b5 {[%clk 0:00:03.2]}
40. h3 {[%clk 0:00:03.1]} 40... Kf7 {[%clk 0:00:03.5]} 41. Rc1 {[%clk
0:00:01.3]} 41... b4 {[%clk 0:00:03.7]} 42. Qa7+ {[%clk 0:00:01.5]} 42... Kg6
{[%clk 0:00:03.5]} 43. Qd7 {[%clk 0:00:02.1]} 43... Qe5 {[%clk 0:00:03.5]} 44.
Qg4+ {[%clk 0:00:01.9]} 44... Kh7 {[%clk 0:00:03.5]} 45. Rd1 {[%clk 0:00:01.9]}
45... Ng6 {[%clk 0:00:03.1]} 46. Qe4 {[%clk 0:00:02.2]} 46... Qh2# {[%clk
0:00:03.1]} 0-1